bitfinex/quotes_BTCUSD_20251114
["timestamp","ask_amount","ask_price","bid_price","bid_amount"]
[1763124758716,0.09904293,95390.0,95356.0,0.02812703]
[1763124758932,0.09904293,95390.0,95351.0,0.323]
[1763124759108,0.09904293,95390.0,95360.0,0.34670722]
[1763124759325,0.09904293,95390.0,95364.0,0.20972249]
[1763124759536,0.09904293,95390.0,95370.0,0.34670722]
[1763124759749,0.09904293,95375.0,95352.0,0.02812703]
[1763124759876,0.09904293,95390.0,95351.0,0.323]
[1763124760290,0.09904293,95390.0,95361.0,0.001]
[1763124760837,0.09904293,95390.0,95360.0,0.09904293]
[1763124761048,0.01013605,95392.0,95370.0,0.34670722]
[1763124761449,0.01013605,95392.0,95381.0,0.36641874]
[1763124761676,0.01013605,95392.0,95381.0,0.04341874]
[1763124761883,0.01013605,95392.0,95380.0,0.34670722]
[1763124762083,0.01013605,95392.0,95375.0,0.02812703]
[1763124762431,0.09904293,95391.0,95365.0,0.04341874]
[1763124762670,0.09904293,95391.0,95361.0,0.04341874]
[1763124763200,0.09904293,95391.0,95360.0,0.44575015]
[1763124763201,0.09904293,95391.0,95360.0,0.34670722]
[1763124763400,0.09904293,95391.0,95361.0,0.10808905]
[1763124763718,0.09904293,95391.0,95370.0,0.34670722]
[1763124763926,0.09904293,95391.0,95361.0,0.09904293]
[1763124764112,0.09904293,95391.0,95370.0,0.34670722]
[1763124764299,0.09904293,95391.0,95360.0,0.34670722]
[1763124764870,0.09904293,95391.0,95361.0,0.09904293]
[1763124765065,0.01013605,95392.0,95370.0,0.34670722]
[1763124765271,0.01013605,95392.0,95380.0,0.34670722]
[1763124765481,0.01013605,95392.0,95381.0,0.42204293]
[1763124765681,0.01013605,95392.0,95381.0,0.53268434]
[1763124765921,0.01013605,95392.0,95382.0,0.09904293]
[1763124766157,0.01013605,95392.0,95388.0,0.20966861]
[1763124766371,0.01013605,95392.0,95384.0,0.323]
[1763124766745,0.01013605,95392.0,95385.0,0.09904293]
[1763124766944,0.01013605,95392.0,95389.0,0.20966702]
[1763124767146,0.09904293,95411.0,95384.0,0.323]
[1763124767410,0.09904293,95411.0,95390.0,0.34670722]
[1763124767606,0.323,95425.0,95390.0,0.01061932]
[1763124767607,0.09904293,95424.0,95390.0,0.01061932]
[1763124767810,0.09904293,95424.0,95391.0,0.20966226]
[1763124768171,0.09904293,95424.0,95390.0,0.34684327]
[1763124768505,0.09904293,95409.0,95390.0,0.00013605]
[1763124768724,0.09904293,95424.0,95390.0,0.35732654]
[1763124768923,0.09904293,95424.0,95399.0,0.34670722]
[1763124769133,0.09904293,95424.0,95399.0,0.2096454]
[1763124769418,0.09904293,95424.0,95398.0,0.20964737]
[1763124769419,0.323,95439.0,95404.0,0.20963307]
[1763124769609,0.323,95439.0,95400.0,0.44575015]
[1763124769807,0.09904293,95440.0,95410.0,0.34670722]
[1763124770115,0.09904293,95440.0,95410.0,0.01048108]
[1763124770293,0.09904293,95440.0,95405.0,0.323]
[1763124770497,0.001,95424.0,95395.0,0.04341874]
[1763124770698,0.001,95424.0,95390.0,0.00013605]
[1763124770905,0.09904293,95425.0,95390.0,0.00013605]
[1763124772902,0.09904293,95410.0,95390.0,0.00013605]
[1763124773983,0.09904293,95410.0,95390.0,0.00113605]
[1763124774199,0.09904293,95423.0,95390.0,0.34784327]
[1763124774401,0.09904293,95423.0,95391.0,0.12000926]
[1763124774601,0.09904293,95423.0,95400.0,0.34670722]
[1763124774799,0.09904293,95423.0,95392.0,0.323]
[1763124775209,0.09904293,95423.0,95393.0,0.01088137]
[1763124775395,0.09904293,95423.0,95390.0,0.34684327]
[1763124775594,0.09904293,95423.0,95390.0,0.00013605]
[1763124775595,0.09904293,95408.0,95390.0,0.00013605]
[1763124775793,0.09904293,95423.0,95390.0,0.00013605]
[1763124776096,0.09904293,95423.0,95390.0,0.00113605]
[1763124776496,0.09904293,95423.0,95390.0,0.00013605]
[1763124777542,0.10004293,95423.0,95390.0,0.00013605]
[1763124778938,0.09904293,95408.0,95390.0,0.00013605]
[1763124780403,0.09904293,95393.0,95390.0,0.00013605]
[1763124780599,0.09904293,95408.0,95390.0,0.00013605]
[1763124780600,0.323,95407.0,95390.0,0.00113605]
[1763124781007,0.09904293,95393.0,95390.0,0.00113605]
[1763124781434,0.34231674,95392.0,95390.0,0.00113605]
[1763124781641,0.06273548,95391.0,95390.0,0.00113605]
[1763124782055,0.06273548,95391.0,95390.0,0.00013605]
[1763124782259,0.38573548,95391.0,95390.0,0.00113605]
[1763124782682,0.09904293,95344.0,95317.0,0.02812703]
[1763124782883,0.00999999,95380.0,95317.0,0.02812703]
[1763124782884,0.09904293,95387.0,95340.0,0.01048877]
[1763124783087,0.01931407,95386.0,95350.0,0.34670722]
[1763124783289,0.09904293,95387.0,95350.0,0.34670722]
[1763124783290,0.09904293,95387.0,95360.0,0.34670722]
[1763124783492,0.09904293,95387.0,95361.0,0.02009249]
[1763124783708,0.09904293,95387.0,95362.0,0.02097271]
[1763124783922,0.09904293,95408.0,95362.0,0.02097271]
[1763124783923,0.09904293,95408.0,95370.0,0.34670722]
[1763124784131,0.09904293,95392.0,95370.0,0.34670722]
[1763124784367,0.09904293,95408.0,95371.0,0.23067808]
[1763124784368,0.09917921,95408.0,95371.0,0.23067808]
[1763124784565,0.01932119,95407.0,95373.0,0.20970182]
[1763124784764,0.09917921,95408.0,95374.0,0.02097007]
[1763124785011,0.0005,95407.0,95375.0,0.02046985]
[1763124785237,0.09917921,95408.0,95390.0,0.34670722]
[1763124785465,0.00013628,95408.0,95397.0,0.34670722]
[1763124785699,0.00013628,95408.0,95406.0,0.20962847]
[1763124785897,0.00013628,95408.0,95407.0,0.36641874]
[1763124786723,0.00013628,95408.0,95407.0,0.57604696]
[1763124787166,0.00013628,95408.0,95407.0,0.57904696]
[1763124788054,0.00013628,95408.0,95407.0,0.58104696]
[1763124788272,0.00013628,95408.0,95407.0,0.63734445]
[1763124788502,0.00013628,95408.0,95407.0,0.57804696]
[1763124788732,0.09904293,95477.0,95407.0,0.57804696]
[1763124788733,0.09904293,95477.0,95440.0,0.01047778]
[1763124788956,0.09904293,95477.0,95450.0,0.34670722]
[1763124788957,0.01981419,95476.0,95450.0,0.34670722]
[1763124789220,0.01981396,95475.0,95427.0,0.323]
[1763124789442,0.09949746,95477.0,95465.0,0.34670722]
[1763124789443,0.01931396,95474.0,95465.0,0.34670722]
[1763124789653,0.00045453,95477.0,95465.0,0.34670722]
[1763124789839,0.00045453,95477.0,95474.0,0.20948035]
[1763124790039,0.00045453,95477.0,95475.0,0.04341874]
[1763124790278,0.00045453,95477.0,95462.0,0.04341874]
[1763124790498,0.001,95475.0,95462.0,0.04341874]
[1763124790922,0.001,95475.0,95450.0,0.04468066]
[1763124791136,0.09904293,95474.0,95429.0,0.08436315]
[1763124791337,0.09904293,95459.0,95422.0,0.323]
[1763124791564,0.09954293,95458.0,95422.0,0.02812105]
[1763124791772,0.09954293,95458.0,95431.0,0.2095755]
[1763124792012,0.09954293,95458.0,95435.0,0.20956584]
[1763124792159,0.09954293,95458.0,95430.0,0.323]
[1763124792542,0.0005,95458.0,95430.0,0.323]
[1763124792747,0.0005,95473.0,95426.0,0.36641874]
[1763124792986,0.0005,95472.0,95428.0,0.36641874]
[1763124793325,0.00045453,95477.0,95447.0,0.20953909]
[1763124793531,0.00045453,95477.0,95446.0,0.04341874]
[1763124793806,0.09904293,95476.0,95441.0,0.04341874]
[1763124793944,0.0005,95475.0,95437.0,0.323]
[1763124794155,0.0005,95475.0,95440.0,0.01047778]
[1763124794415,0.00045453,95477.0,95460.0,0.58035351]
[1763124794642,0.00045453,95477.0,95459.0,0.04341874]
[1763124794855,0.00045453,95477.0,95450.0,0.01704678]
[1763124794856,0.00045453,95477.0,95451.0,0.04341874]
[1763124795091,0.00045453,95477.0,95451.0,0.36641874]
[1763124795328,0.00045453,95477.0,95476.0,0.20947672]
[1763124795557,0.00045453,95477.0,95465.0,0.36641874]
[1763124795783,0.00045453,95477.0,95476.0,0.57589546]
[1763124796006,0.00045453,95477.0,95476.0,0.36641874]
[1763124796224,0.00045453,95477.0,95476.0,0.57589546]
[1763124796451,2.92266643,95500.0,95479.0,0.57588888]
[1763124796671,2.92266643,95500.0,95499.0,0.57584501]
[1763124797521,2.92266643,95500.0,95499.0,0.36641874]
[1763124797889,2.92266643,95500.0,95499.0,0.04541874]
[1763124798295,2.92266643,95500.0,95499.0,0.04741874]
[1763124799054,2.92266643,95500.0,95499.0,0.04541874]
[1763124799498,2.92266643,95500.0,95499.0,0.04746874]
[1763124799706,2.92266643,95500.0,95499.0,0.04546874]
[1763124799928,2.92266643,95500.0,95499.0,0.04446874]
[1763124800127,2.92266643,95500.0,95499.0,0.04651874]
[1763124800366,2.92266643,95500.0,95499.0,0.0031]
[1763124800577,2.92266643,95500.0,95499.0,0.00315]
[1763124800784,2.92266643,95500.0,95499.0,0.00215]
[1763124800996,2.92266643,95500.0,95499.0,0.00015]
[1763124801182,2.92266643,95500.0,95499.0,0.04461874]
[1763124801315,2.92266643,95500.0,95499.0,0.04361874]
[1763124801516,2.92266643,95500.0,95499.0,0.0502]
[1763124802272,2.92266643,95500.0,95499.0,0.0522]
[1763124802722,2.92266643,95500.0,95499.0,0.0502]
[1763124802911,2.92266643,95500.0,95499.0,0.0512]
[1763124803167,2.92266643,95500.0,95499.0,0.0502]
[1763124803439,2.92266643,95500.0,95499.0,0.0202]
[1763124805532,2.92266643,95500.0,95499.0,0.0212]
[1763124806095,2.92266643,95500.0,95499.0,0.0202]
[1763124810857,2.92266643,95500.0,95499.0,0.0022]
[1763124812061,2.92266643,95500.0,95499.0,0.25504501]
[1763124812236,2.92266643,95500.0,95499.0,0.57804501]
[1763124812437,2.92266643,95500.0,95499.0,0.36861874]
[1763124812619,2.92266643,95500.0,95499.0,0.57804501]
[1763124813395,2.91766643,95500.0,95499.0,0.57804501]
[1763124813594,2.91766643,95500.0,95499.0,0.57904501]
[1763124814374,2.91766643,95500.0,95499.0,0.58104501]
[1763124814810,2.91766643,95500.0,95499.0,0.58004501]
[1763124815176,2.91766643,95500.0,95499.0,0.58204501]
[1763124815379,2.91766643,95500.0,95499.0,0.37261874]
[1763124815587,2.91766643,95500.0,95499.0,0.37061874]
[1763124816062,2.91766643,95500.0,95499.0,0.37261874]
[1763124816301,2.91766643,95500.0,95499.0,0.37061874]
[1763124816495,2.91766643,95500.0,95499.0,0.36861874]
[1763124816632,2.91766643,95500.0,95499.0,0.39958413]
[1763124816971,2.91766643,95500.0,95499.0,0.37061874]
[1763124817170,2.91766643,95500.0,95499.0,0.37261874]
[1763124817762,2.91766643,95500.0,95499.0,0.37061874]
[1763124817987,2.91766643,95500.0,95499.0,0.36861874]
[1763124818215,2.91766643,95500.0,95499.0,0.3252]
[1763124818447,2.91766643,95500.0,95499.0,0.0042]
[1763124819113,2.91766643,95500.0,95499.0,0.0022]
[1763124819355,2.91766643,95500.0,95499.0,0.21362627]
[1763124819647,2.91766643,95500.0,95499.0,0.0062]
[1763124819785,2.91766643,95500.0,95499.0,0.0022]
[1763124820009,2.91766643,95500.0,95499.0,0.0042]
[1763124820231,2.91766643,95500.0,95499.0,0.0062]
[1763124820458,2.41766643,95500.0,95499.0,0.0062]
[1763124823360,2.41766643,95500.0,95499.0,0.0042]
[1763124823800,2.41766643,95500.0,95499.0,0.0032]
[1763124825098,2.41766643,95500.0,95499.0,0.0042]
[1763124826602,2.41766643,95500.0,95499.0,0.3272]
[1763124826841,2.41766643,95500.0,95499.0,0.37061874]
[1763124827292,2.41766643,95500.0,95499.0,0.4081733]
[1763124827516,2.41766643,95500.0,95499.0,0.37061874]
[1763124827936,2.38622158,95500.0,95499.0,0.48101874]
[1763124828153,2.38622158,95500.0,95499.0,0.36961874]
[1763124828404,2.38622158,95500.0,95499.0,0.37161874]
[1763124828613,2.38622158,95500.0,95499.0,0.37066874]
[1763124828829,2.38622158,95500.0,95499.0,0.37166874]
[1763124829040,2.38622158,95500.0,95499.0,0.36871874]
[1763124829249,2.38622158,95500.0,95499.0,0.37071874]
[1763124829472,2.38622158,95500.0,95499.0,0.42908174]
[1763124829882,2.38622158,95500.0,95499.0,0.37076874]
[1763124830116,2.38622158,95500.0,95499.0,0.37276874]
[1763124830327,2.38622158,95500.0,95499.0,0.37076874]
[1763124831392,2.38622158,95500.0,95499.0,0.36876874]
[1763124831593,2.38622158,95500.0,95499.0,0.00635]
[1763124831798,2.38622158,95500.0,95499.0,0.3274]
[1763124832135,2.38622158,95500.0,95499.0,0.37086874]
[1763124832339,2.38622158,95500.0,95499.0,0.40640424]
[1763124832542,2.38622158,95500.0,95499.0,0.40840424]
[1763124832757,2.38622158,95500.0,95499.0,0.37191874]
[1763124832954,2.38622158,95500.0,95499.0,0.36891874]
[1763124833384,2.38622158,95500.0,95499.0,0.37191874]
[1763124833802,2.35336502,95500.0,95499.0,0.37191874]
[1763124834012,1.80817878,95500.0,95499.0,0.37191874]
[1763124834271,1.74529458,95500.0,95499.0,0.37191874]
[1763124834474,1.71385248,95500.0,95499.0,0.37191874]
[1763124834699,1.68241038,95500.0,95499.0,0.37091874]
[1763124834858,1.68241038,95500.0,95499.0,0.36891874]
[1763124835063,1.03230888,95500.0,95499.0,0.37091874]
[1763124835272,0.9297848,95500.0,95499.0,0.37291874]
[1763124835479,0.14304852,95500.0,95499.0,2.48131874]
[1763124835676,0.0002,95530.0,95529.0,0.57577924]
[1763124835875,0.0002,95560.0,95539.0,0.57575733]
[1763124836078,0.00033625,95540.0,95539.0,0.57575733]
[1763124836455,0.00033625,95540.0,95539.0,0.36641874]
[1763124836656,0.00033625,95540.0,95539.0,0.35110067]
[1763124836856,0.00458114,95540.0,95539.0,0.35110067]
[1763124837057,0.00458114,95540.0,95539.0,0.46546167]
[1763124837902,0.00458114,95540.0,95539.0,0.46746167]
[1763124838312,0.00458114,95540.0,95539.0,0.46546167]
[1763124838522,0.00458114,95540.0,95539.0,0.46746167]
[1763124838722,0.00458114,95540.0,95539.0,0.46946167]
[1763124838938,0.00458114,95540.0,95539.0,0.51634377]
[1763124839113,0.00458114,95540.0,95539.0,0.51434377]
[1763124839333,0.00458114,95540.0,95539.0,0.49368983]
[1763124839576,0.00458114,95540.0,95539.0,0.46746167]
[1763124839788,0.0002,95560.0,95549.0,0.57573542]
[1763124840214,0.01297426,95550.0,95549.0,0.59996358]
[1763124840415,0.0002,95560.0,95559.0,0.57571352]
[1763124840849,0.00047351,95560.0,95559.0,0.59937183]
[1763124841072,0.00047351,95560.0,95559.0,0.36641874]
[1763124841274,0.00047351,95560.0,95559.0,0.323]
[1763124841480,0.00047351,95560.0,95550.0,0.58035351]
[1763124841689,0.0002,95560.0,95550.0,0.58035351]
[1763124841895,0.00024616,95559.0,95549.0,0.003]
[1763124842101,0.00024616,95559.0,95549.0,0.00513625]
[1763124842367,0.00024616,95559.0,95549.0,0.00013625]
[1763124842557,0.01928474,95558.0,95550.0,0.001]
[1763124842768,0.04341874,95556.0,95550.0,0.002]
[1763124843024,0.46546167,95551.0,95550.0,0.001]
[1763124843220,0.11832767,95551.0,95510.0,0.0104701]
[1763124843467,0.01978474,95550.0,95511.0,0.323]
[1763124843663,0.01928474,95549.0,95511.0,0.323]
[1763124843864,0.04391874,95548.0,95490.0,0.028049]
[1763124844056,0.04341874,95546.0,95492.0,0.20943945]
[1763124844267,0.09904293,95522.0,95490.0,0.58035351]
[1763124844441,0.09904293,95522.0,95484.0,0.028049]
[1763124844674,0.09904293,95522.0,95483.0,0.028049]
[1763124844905,0.09904293,95522.0,95476.0,0.20947617]
[1763124844906,0.09904293,95507.0,95476.0,0.20947617]
[1763124845060,0.09904293,95522.0,95483.0,0.323]
[1763124845345,0.09904293,95522.0,95480.0,0.5908269]
[1763124845346,0.09904293,95522.0,95490.0,0.0104723]
[1763124845552,0.09917897,95522.0,95493.0,0.20943914]
[1763124845719,0.09917897,95522.0,95491.0,0.2094427]
[1763124845921,0.09917897,95522.0,95490.0,0.59082581]
[1763124846128,0.10017897,95522.0,95493.0,0.323]
[1763124846362,0.00113604,95522.0,95500.0,0.58035351]
[1763124846569,0.00113604,95522.0,95503.0,0.20941736]
[1763124846727,0.00113604,95522.0,95505.0,0.53241133]
[1763124846927,0.00113604,95522.0,95506.0,0.02094109]
[1763124847162,0.00113604,95522.0,95520.0,0.20938023]
[1763124847368,0.00113604,95522.0,95521.0,0.3439378]
[1763124847575,0.00113604,95522.0,95521.0,0.323]
[1763124847972,0.00013604,95522.0,95511.0,0.323]
[1763124848151,0.00013604,95522.0,95513.0,0.323]
[1763124848532,0.00013604,95522.0,95514.0,0.01209942]
[1763124848733,0.00013604,95522.0,95513.0,0.323]
[1763124848936,0.00013604,95522.0,95521.0,0.001]
[1763124849137,0.00013604,95522.0,95513.0,0.323]
[1763124849337,0.00013604,95522.0,95513.0,0.324]
[1763124849543,0.00013604,95522.0,95520.0,0.323]
[1763124849742,0.00013604,95522.0,95514.0,0.323]
[1763124849941,0.00013604,95522.0,95515.0,0.01502607]
[1763124850158,0.0005,95550.0,95513.0,0.001]
[1763124850159,0.0005,95550.0,95522.0,0.04904491]
[1763124850567,0.0005,95550.0,95530.0,0.58035351]
[1763124850770,0.0205,95550.0,95530.0,0.58035351]
[1763124851017,0.01336874,95549.0,95522.0,0.04904491]
[1763124851318,0.0205,95548.0,95522.0,0.04904491]
[1763124852075,0.00013614,95549.0,95538.0,0.58035351]
[1763124852304,0.00013614,95549.0,95539.0,0.34393385]
[1763124852515,0.001,95548.0,95542.0,0.20933027]
[1763124852749,0.001,95548.0,95544.0,0.20932626]
[1763124852898,0.001,95548.0,95539.0,0.90335351]
[1763124852899,0.00013614,95549.0,95539.0,0.323]
[1763124853308,0.00113614,95549.0,95539.0,0.323]
[1763124853515,0.00113614,95549.0,95540.0,0.323]
[1763124854754,0.00013614,95549.0,95539.0,0.90335351]
[1763124854976,0.00013614,95549.0,95539.0,0.001]
[1763124855595,0.00013614,95549.0,95530.0,0.34550502]
[1763124855840,0.00013614,95549.0,95540.0,0.001]
[1763124855990,0.25013614,95549.0,95540.0,0.001]
[1763124856198,0.25013614,95549.0,95539.0,0.34550502]
[1763124856786,0.09904293,95548.0,95534.0,0.323]
[1763124856990,0.25013614,95549.0,95532.0,0.323]
[1763124857190,0.25013614,95549.0,95538.0,0.34550502]
[1763124857400,0.25013614,95549.0,95539.0,0.20933859]
[1763124857655,0.25013614,95549.0,95548.0,0.323]
[1763124857874,0.25013614,95549.0,95548.0,0.36641874]
[1763124858052,0.25013614,95549.0,95548.0,0.39415829]
[1763124858268,0.21871837,95549.0,95548.0,0.36641874]
[1763124858470,0.1873006,95549.0,95548.0,0.41593759]
[1763124858619,0.15588283,95549.0,95548.0,0.41593759]
[1763124858825,0.12446506,95549.0,95548.0,0.36641874]
[1763124859025,0.12446506,95549.0,95548.0,0.36841874]
[1763124859368,0.12446506,95549.0,95548.0,0.37041874]
[1763124859510,0.12446506,95549.0,95548.0,0.36841874]
[1763124859718,0.12446506,95549.0,95548.0,0.37041874]
[1763124859920,0.09304729,95549.0,95548.0,0.52206386]
[1763124860123,0.06162952,95549.0,95548.0,0.52206386]
[1763124860343,0.03021175,95549.0,95548.0,2.46946167]
[1763124860716,0.0002,95580.0,95572.0,0.57284995]
[1763124860929,0.00054372,95573.0,95572.0,0.57284995]
[1763124861139,0.00054372,95573.0,95572.0,0.62893771]
[1763124861345,0.00054372,95573.0,95572.0,0.63594252]
[1763124861472,0.00054372,95573.0,95572.0,0.66035401]
[1763124861671,0.00054372,95573.0,95572.0,0.36641874]
[1763124861888,0.00054372,95573.0,95569.0,0.02802245]
[1763124862100,0.00054372,95573.0,95572.0,0.002]
[1763124862327,0.00054372,95573.0,95572.0,0.006]
[1763124862535,0.00054372,95573.0,95572.0,0.004]
[1763124862734,0.00054372,95573.0,95572.0,0.002]
[1763124863288,0.00054372,95573.0,95548.0,0.09904293]
[1763124863873,8.156e-05,95573.0,95548.0,0.09904293]
[1763124864096,0.02061156,95580.0,95548.0,0.09904293]
[1763124864298,0.01929317,95579.0,95548.0,0.09904293]
[1763124864499,0.03979317,95578.0,95548.0,0.09904293]
[1763124864706,0.01870124,95577.0,95572.0,0.001]
[1763124864921,0.02028376,95576.0,95572.0,0.002]
[1763124865143,0.09904293,95573.0,95532.0,0.323]
[1763124865387,0.09904293,95555.0,95533.0,0.02093517]
[1763124865534,0.09904293,95555.0,95531.0,0.323]
[1763124865738,0.09904293,95555.0,95510.0,0.36549233]
[1763124865937,0.09904293,95555.0,95513.0,0.32315]
[1763124866123,0.09904293,95540.0,95520.0,0.34550502]
[1763124866325,0.09852083,95555.0,95513.0,0.00015]
[1763124866525,0.09852083,95555.0,95520.0,0.34550502]
[1763124867468,0.09904293,95524.0,95522.0,0.05169863]
[1763124867788,0.323,95539.0,95522.0,0.05169863]
[1763124867996,0.09904293,95525.0,95522.0,0.05169863]
[1763124868209,0.09904293,95525.0,95522.0,0.05269863]
[1763124868610,0.09904293,95525.0,95522.0,0.05169863]
[1763124868956,0.09904293,95525.0,95513.0,0.00015]
[1763124869157,0.09904293,95525.0,95513.0,0.00028614]
[1763124869323,0.09904293,95525.0,95474.0,0.04341874]
[1763124869324,0.09904293,95525.0,95480.0,0.34550502]
[1763124869546,0.09904293,95525.0,95480.0,0.00013604]
[1763124869547,0.323,95524.0,95480.0,0.00013604]
[1763124869742,0.04341874,95519.0,95480.0,0.00013604]
[1763124869962,0.09904293,95485.0,95480.0,0.00013604]
[1763124870774,0.09904293,95485.0,95451.0,0.02095315]
[1763124870986,0.09904293,95485.0,95452.0,0.02095293]
[1763124871227,0.09904293,95485.0,95453.0,0.02095272]
[1763124871347,0.09904293,95467.0,95451.0,0.00045453]
[1763124871546,0.323,95484.0,95451.0,0.00045453]
[1763124871743,0.09904293,95500.0,95459.0,0.09904293]
[1763124871943,0.02780483,95534.0,95480.0,0.34550502]
[1763124872225,0.09904293,95508.0,95480.0,0.34550502]
[1763124872387,0.09904293,95493.0,95471.0,0.323]
[1763124872598,0.09872356,95493.0,95470.0,0.34550502]
[1763124873187,0.09872356,95493.0,95470.0,0.0001363]
[1763124873367,0.09904293,95478.0,95470.0,0.0001363]
[1763124875011,0.09904293,95478.0,95470.0,0.0011363]
[1763124876868,0.09872356,95493.0,95470.0,0.0011363]
[1763124877070,0.09872356,95493.0,95470.0,0.02208528]
[1763124877485,0.09904293,95478.0,95470.0,0.0011363]
[1763124877890,0.09904293,95478.0,95460.0,0.29564132]
[1763124878099,0.0991789,95478.0,95460.0,0.29564132]
[1763124878541,0.0991789,95478.0,95453.0,0.00334274]
[1763124878962,0.0991789,95478.0,95470.0,0.001]
[1763124880005,0.04341874,95477.0,95470.0,0.001]
[1763124880206,0.04341874,95477.0,95453.0,0.00334274]
[1763124880437,0.09904293,95454.0,95453.0,0.00334274]
[1763124880647,0.09904293,95454.0,95453.0,0.00434274]
[1763124880996,0.09904293,95454.0,95453.0,0.00334274]
[1763124881665,0.42404293,95454.0,95453.0,0.00334274]
[1763124881871,0.42204293,95454.0,95453.0,0.00334274]
[1763124882277,0.42304293,95454.0,95453.0,0.00334274]
[1763124882490,0.42204293,95454.0,95453.0,0.00334274]
[1763124883654,0.42404293,95454.0,95453.0,0.00334274]
[1763124883863,0.46946167,95454.0,95453.0,0.00334274]
[1763124884452,0.46746167,95454.0,95453.0,0.00334274]
[1763124885068,0.46946167,95454.0,95453.0,0.00334274]
[1763124885766,0.323,95453.0,95410.0,0.34550502]
[1763124885948,0.09904293,95427.0,95411.0,0.01570722]
[1763124886195,0.09904293,95427.0,95405.0,2.0]
[1763124886395,0.09904293,95427.0,95410.0,0.34550502]
[1763124886610,0.09904293,95427.0,95411.0,0.01571222]
[1763124886831,0.10104293,95454.0,95411.0,0.33871222]
[1763124887039,0.09904293,95436.0,95416.0,0.323]
[1763124887246,0.09904293,95436.0,95417.0,0.01570835]
[1763124887475,0.09904293,95436.0,95416.0,0.323]
[1763124888112,0.09904293,95436.0,95400.0,0.34590502]
[1763124888113,0.09904293,95436.0,95401.0,0.36641874]
[1763124888332,0.09904293,95436.0,95411.0,0.323]
[1763124888537,0.09904293,95436.0,95410.0,0.34550502]
[1763124888538,0.09904293,95436.0,95415.0,0.323]
[1763124888755,0.09904293,95436.0,95400.0,0.0004]
[1763124888756,0.09904293,95421.0,95400.0,0.0004]
[1763124888958,0.09904293,95401.0,95400.0,0.0004]
[1763124889394,0.10004293,95436.0,95381.0,2.0]
[1763124889608,0.09904293,95421.0,95401.0,2.0]
[1763124889814,0.09904293,95421.0,95391.0,2.0]
[1763124890029,0.09904293,95421.0,95386.0,0.09904293]
[1763124890030,0.09904293,95421.0,95401.0,0.00045453]
[1763124890969,0.10004293,95421.0,95401.0,0.00045453]
[1763124891408,0.10104293,95421.0,95401.0,0.00045453]
[1763124891634,0.09904293,95406.0,95401.0,0.00045453]
[1763124892730,0.09904293,95406.0,95382.0,2.0]
[1763124892955,0.09904293,95406.0,95405.0,0.0013158]
[1763124893383,0.44117751,95406.0,95405.0,0.0013158]
[1763124893582,0.42204293,95406.0,95405.0,0.0013158]
[1763124893812,0.484596,95406.0,95405.0,0.0013158]
[1763124894927,0.488596,95406.0,95405.0,0.0013158]
[1763124895157,0.485596,95406.0,95405.0,0.0013158]
[1763124896110,0.484596,95406.0,95405.0,0.0013158]
[1763124896338,0.487596,95406.0,95405.0,0.0013158]
[1763124896557,0.04341874,95389.0,95382.0,0.00013628]
[1763124896768,0.46546167,95383.0,95382.0,0.00013628]
[1763124896971,0.484596,95383.0,95382.0,0.00013628]
[1763124897181,0.48459676,95383.0,95382.0,0.00013628]
[1763124897607,0.44117802,95383.0,95382.0,0.00013628]
[1763124898024,0.44317802,95383.0,95382.0,0.00013628]
[1763124898447,0.44518466,95383.0,95382.0,0.00013628]
[1763124898660,0.44518504,95383.0,95382.0,0.00013628]
[1763124899076,0.48860378,95383.0,95382.0,0.00013628]
[1763124899278,0.48660378,95383.0,95382.0,0.00013628]
[1763124899858,0.04341874,95379.0,95321.0,0.29053628]
[1763124900081,0.09904293,95345.0,95321.0,0.29053628]
[1763124900570,0.09904293,95360.0,95331.0,2.0]
[1763124900825,0.09904293,95345.0,95322.0,0.04341874]
[1763124901040,0.10104293,95383.0,95339.0,0.09904293]
[1763124901041,0.09904293,95376.0,95339.0,0.09904293]
[1763124901253,0.004,95383.0,95369.0,0.09904293]
[1763124901254,0.002,95379.0,95369.0,0.09904293]
[1763124901467,0.002,95379.0,95378.0,0.04341874]
[1763124901673,0.004,95383.0,95380.0,0.04341874]
[1763124901882,0.004,95383.0,95373.0,0.04341874]
[1763124902135,0.004,95383.0,95378.0,0.20969113]
[1763124902338,0.0262005,95418.0,95383.0,0.36641874]
[1763124902554,0.02620078,95417.0,95386.0,2.0]
[1763124902792,0.09904293,95390.0,95363.0,0.323]
[1763124902991,0.09904293,95390.0,95364.0,0.01532024]
[1763124903218,0.01761637,95389.0,95365.0,0.11478084]
[1763124903437,0.02432219,95404.0,95383.0,2.0]
[1763124903607,0.01561424,95404.0,95383.0,2.0]
[1763124903834,0.02620023,95419.0,95393.0,0.323]
[1763124904034,0.02619584,95435.0,95401.0,2.0]
[1763124904327,0.02487337,95434.0,95400.0,2.34550502]
[1763124904475,0.02619638,95433.0,95401.0,2.0]
[1763124904693,0.01808607,95435.0,95401.0,2.0]
[1763124905016,0.01808607,95435.0,95390.0,0.33348327]
[1763124905017,0.09904293,95421.0,95383.0,0.04341874]
[1763124905223,0.09904293,95421.0,95381.0,2.04341874]
[1763124905224,0.02619995,95420.0,95400.0,0.34550502]
[1763124905437,0.00045321,95435.0,95411.0,2.0]
[1763124905438,0.02664905,95435.0,95411.0,2.0]
[1763124905777,0.002,95419.0,95411.0,2.0]
[1763124906013,0.002,95419.0,95411.0,0.04341874]
[1763124906214,0.00145321,95435.0,95413.0,0.20961363]
[1763124906417,0.00145321,95435.0,95415.0,0.20961064]
[1763124906622,0.00145321,95435.0,95422.0,2.323]
[1763124906828,0.00145321,95435.0,95423.0,2.0]
[1763124906829,0.00045321,95435.0,95423.0,2.0]
[1763124907049,0.00045321,95435.0,95428.0,0.36641874]
[1763124907265,0.00045321,95435.0,95434.0,2.25298765]
[1763124908165,0.00045321,95435.0,95434.0,2.04341874]
[1763124908313,0.00045321,95435.0,95434.0,2.25298765]
[1763124908931,0.00045321,95435.0,95434.0,2.04341874]
[1763124909146,0.00045321,95435.0,95420.0,0.03736219]
[1763124909148,0.00045321,95435.0,95425.0,0.36641874]
[1763124909451,0.00045321,95435.0,95434.0,0.004]
[1763124909827,0.00045321,95435.0,95434.0,0.002]
[1763124910483,0.00045321,95435.0,95425.0,0.002]
[1763124910694,0.00045321,95435.0,95434.0,0.001]
[1763124911047,0.00045321,95435.0,95425.0,0.002]
[1763124911451,0.09904293,95434.0,95400.0,0.3559872]
[1763124911654,0.02619638,95433.0,95402.0,0.04341874]
[1763124911852,0.02619638,95433.0,95405.0,2.0]
[1763124912053,0.02619638,95433.0,95402.0,0.04341874]
[1763124912233,0.02619638,95433.0,95411.0,2.0]
[1763124912434,0.00045321,95435.0,95411.0,2.0]
[1763124912435,0.00045321,95435.0,95414.0,2.0]
[1763124912638,0.00045321,95435.0,95420.0,0.34550502]